bitfinex/quotes_SOLUSD_20250705
["timestamp","ask_amount","ask_price","bid_price","bid_amount"]
[1751730732266,26.03,147.46,147.43,13.81954188]
[1751730733165,5.01520018,147.45,147.43,13.81954188]
[1751730733463,26.03,147.46,147.43,13.81954188]
[1751730733673,5.01514809,147.45,147.43,13.81954188]
[1751730733962,26.03,147.46,147.43,13.81954188]
[1751730734139,5.01514809,147.45,147.43,13.81954188]
[1751730734335,26.03,147.46,147.43,13.81954188]
[1751730734544,5.01533548,147.45,147.43,13.81954188]
[1751730734766,26.03,147.46,147.43,13.81954188]
[1751730734957,5.01533548,147.45,147.43,13.81954188]
[1751730735158,26.03,147.46,147.43,13.81954188]
[1751730735467,5.01514496,147.45,147.43,13.81954188]
[1751730735652,26.03,147.46,147.43,13.81954188]
[1751730735853,5.01514496,147.45,147.43,13.81954188]
[1751730736167,26.03,147.46,147.43,13.81954188]
[1751730736366,5.01496655,147.45,147.43,13.81954188]
[1751730736567,26.03,147.46,147.43,13.81954188]
[1751730736814,5.01496655,147.45,147.43,6.78288001]
[1751730736967,33.06666187,147.46,147.43,6.78288001]
[1751730737171,5.01496655,147.45,147.43,6.78288001]
[1751730737360,33.06666187,147.46,147.43,6.78288001]
[1751730737563,5.01479903,147.45,147.43,6.78288001]
[1751730737767,4.50146485,147.45,147.43,6.78288001]
[1751730737964,5.01436719,147.44,147.43,6.78288001]
[1751730739075,5.01436719,147.44,147.42,6.78334011]
[1751730739271,4.50146485,147.45,147.42,6.78334011]
[1751730739462,5.01437041,147.44,147.42,6.78334011]
[1751730739649,4.50146485,147.45,147.42,6.78334011]
[1751730739966,5.01437041,147.44,147.42,6.78334011]
[1751730740174,4.50146485,147.45,147.42,6.78334011]
[1751730740472,5.01437312,147.44,147.42,6.78334011]
[1751730740663,4.50146485,147.45,147.42,6.78334011]
[1751730740867,5.01437387,147.44,147.42,6.78334011]
[1751730741059,30.53146485,147.46,147.42,6.78334011]
[1751730741369,5.01437471,147.45,147.42,6.78334011]
[1751730741577,5.01437471,147.44,147.41,28.24476584]
[1751730741787,30.53146485,147.46,147.41,28.24476584]
[1751730741966,5.01437726,147.45,147.41,28.24476584]
[1751730744448,30.53146485,147.46,147.42,4.50146485]
[1751730744651,5.01629446,147.45,147.42,4.50146485]
[1751730744851,30.53146485,147.46,147.43,6.78288001]
[1751730745076,5.01629605,147.45,147.43,6.78288001]
[1751730745269,26.03,147.46,147.43,6.78288001]
[1751730745471,5.01628032,147.45,147.43,6.78288001]
[1751730745773,30.53146485,147.46,147.43,6.78288001]
[1751730745957,5.01628032,147.45,147.43,6.78288001]
[1751730746158,26.03,147.46,147.43,6.78288001]
[1751730746365,5.01621657,147.45,147.43,6.78288001]
[1751730746563,26.03,147.46,147.43,6.78288001]
[1751730746766,5.01621121,147.45,147.43,6.78288001]
[1751730746957,26.03,147.46,147.43,6.78288001]
[1751730747149,5.01622106,147.45,147.43,6.78288001]
[1751730747371,30.53146485,147.46,147.43,6.78288001]
[1751730747567,5.01615898,147.45,147.43,6.78288001]
[1751730747773,4.50146485,147.45,147.43,6.78288001]
[1751730748689,30.53146485,147.46,147.42,6.78334011]
[1751730748980,5.01609653,147.45,147.42,6.78334011]
[1751730749288,30.53146485,147.46,147.42,6.78334011]
[1751730749463,5.01603223,147.45,147.42,6.78334011]
[1751730749664,30.53146485,147.46,147.42,6.78334011]
[1751730749885,5.01603913,147.45,147.42,6.78334011]
[1751730750064,30.53146485,147.46,147.42,4.50146485]
[1751730750258,5.01587225,147.45,147.42,4.50146485]
[1751730750476,26.03,147.46,147.42,4.50146485]
[1751730750670,5.01597591,147.45,147.42,4.50146485]
[1751730750870,26.03,147.46,147.42,4.50146485]
[1751730751068,5.01597337,147.45,147.42,4.50146485]
[1751730751366,26.03,147.46,147.43,6.78288001]
[1751730751565,5.0159567,147.45,147.43,6.78288001]
[1751730751863,26.03,147.46,147.43,6.78288001]
[1751730752064,5.0159552,147.45,147.43,6.78288001]
[1751730752269,26.03,147.46,147.43,6.78288001]
[1751730752470,5.01655671,147.45,147.43,6.78288001]
[1751730752663,26.03,147.46,147.43,6.78288001]
[1751730752876,5.01649699,147.45,147.43,6.78288001]
[1751730753077,9.51752375,147.44,147.41,6.78380028]
[1751730753278,5.0160589,147.43,147.41,6.78380028]
[1751730753582,4.50146485,147.44,147.41,6.78380028]
[1751730753790,5.01638273,147.43,147.41,6.78380028]
[1751730753978,4.50146485,147.44,147.41,6.78380028]
[1751730754171,5.01639347,147.43,147.41,6.78380028]
[1751730754484,4.50146485,147.44,147.41,6.78380028]
[1751730754678,5.01685345,147.43,147.41,6.78380028]
[1751730754877,4.50146485,147.44,147.41,6.78380028]
[1751730755088,5.01685957,147.43,147.41,6.78380028]
[1751730755288,4.50146485,147.44,147.41,6.78380028]
[1751730755591,5.01734492,147.43,147.41,6.78380028]
[1751730755767,4.50146485,147.44,147.41,6.78380028]
[1751730755969,5.01734492,147.43,147.41,6.78380028]
[1751730756169,26.03,147.46,147.41,6.78380028]
[1751730756367,4.50146485,147.44,147.41,6.78380028]
[1751730756575,5.01766008,147.43,147.41,6.78380028]
[1751730756775,4.50146485,147.44,147.41,6.78380028]
[1751730756991,5.01765751,147.43,147.41,6.78380028]
[1751730757184,4.50146485,147.44,147.41,6.78380028]
[1751730757383,5.01797099,147.43,147.41,6.78380028]
[1751730757687,4.50146485,147.44,147.41,6.78380028]
[1751730757902,5.01796629,147.43,147.41,6.78380028]
[1751730758060,4.50146485,147.44,147.41,6.78380028]
[1751730758265,5.01797703,147.43,147.41,6.78380028]
[1751730758467,4.50146485,147.44,147.41,6.78380028]
[1751730758688,5.01853207,147.43,147.41,6.78380028]
[1751730758971,4.50146485,147.44,147.41,6.78380028]
[1751730759184,5.01854281,147.43,147.41,6.78380028]
[1751730759384,4.50146485,147.44,147.41,6.78380028]
[1751730759567,5.01914136,147.43,147.41,6.78380028]
[1751730759770,4.50146485,147.44,147.41,6.78380028]
[1751730759987,5.0191406,147.43,147.41,6.78380028]
[1751730760170,4.50146485,147.43,147.4,0.06]
[1751730760492,4.50146485,147.41,147.4,0.06]
[1751730760801,9.52054515,147.41,147.4,0.06]
[1751730763866,12.05738566,147.41,147.4,0.06]
[1751730766994,18.84118594,147.41,147.4,0.06]
[1751730767406,5.0190803,147.41,147.4,0.06]
[1751730767700,12.05738566,147.41,147.4,0.06]
[1751730772576,44.84118594,147.41,147.4,0.06]
[1751730772984,18.84118594,147.41,147.4,0.06]
[1751730775302,39.82210564,147.41,147.4,0.06]
[1751730775504,13.82210564,147.41,147.4,0.06]
[1751730775702,18.8197284,147.41,147.4,0.06]
[1751730783791,16.28736775,147.41,147.4,0.06]
[1751730783990,42.28736775,147.41,147.4,0.06]
[1751730784195,16.28736775,147.41,147.4,0.06]
[1751730785698,11.78142304,147.41,147.4,0.06]
[1751730785896,16.28736775,147.41,147.4,0.06]
[1751730787492,9.50356747,147.41,147.4,0.06]
[1751730789815,12.03678023,147.41,147.4,0.06]
[1751730791313,18.82058051,147.41,147.4,0.06]
[1751730796862,44.82058051,147.41,147.4,0.06]
[1751730796998,18.82058051,147.41,147.4,0.06]
[1751730799612,25.06760896,147.41,147.4,0.06]
[1751730801928,26.0,147.38,147.34,0.06]
[1751730802111,7.03915747,147.35,147.34,0.06]
[1751730802426,12.03678023,147.35,147.34,0.06]
[1751730806640,18.82334283,147.35,147.34,0.06]
[1751730807805,44.82334283,147.35,147.34,0.06]
[1751730813949,42.29367828,147.35,147.34,0.06]
[1751730823438,37.29605552,147.35,147.34,0.06]
[1751730824034,42.29947743,147.35,147.34,0.06]
[1751730827350,31.00342191,147.35,147.34,0.06]
[1751730827557,35.51291483,147.35,147.34,0.06]
[1751730827756,26.0,147.35,147.34,0.06]
[1751730829042,31.00397808,147.35,147.34,0.06]
[1751730829254,26.0,147.35,147.34,0.06]
[1751730831867,30.50949292,147.35,147.34,0.06]
[1751730836448,35.51766639,147.35,147.34,0.06]
[1751730837760,26.0,147.35,147.34,0.06]
[1751730837955,30.50949292,147.35,147.34,0.06]
[1751730838838,35.51942459,147.35,147.34,0.06]
[1751730845343,31.00993167,147.35,147.34,0.06]
[1751730848275,6.25643311,147.39,147.34,0.06]
[1751730848449,4.50949292,147.37,147.34,0.06]
[1751730848651,5.02060527,147.36,147.34,0.06]
[1751730848867,26.0,147.37,147.34,0.06]
[1751730849170,5.02059672,147.36,147.35,6.7865626]
[1751730849740,26.0,147.37,147.35,6.7865626]
[1751730850152,5.02013125,147.36,147.35,6.7865626]
[1751730850669,5.02013125,147.36,147.34,0.06]
[1751730850972,4.50949292,147.35,147.34,0.06]
[1751730851476,9.52816284,147.35,147.34,0.06]
[1751730852282,5.01866992,147.35,147.34,0.06]
[1751730852580,9.52816284,147.35,147.34,0.06]
[1751730857673,4.50949292,147.35,147.34,0.06]
[1751730860048,4.50949292,147.36,147.34,0.06]
[1751730861255,30.50949292,147.37,147.34,0.06]
[1751730861575,5.01734713,147.36,147.34,0.06]
[1751730861775,30.50949292,147.37,147.34,0.06]
[1751730861973,5.01734637,147.36,147.34,0.06]
[1751730862166,5.01757701,147.35,147.34,6.84702321]
[1751730864857,9.52706993,147.35,147.34,0.06]
[1751730872071,5.01757701,147.35,147.34,0.06]
[1751730877166,26.0,147.36,147.34,0.06]
[1751730877368,4.50949292,147.37,147.34,0.06]
[1751730877589,5.02202018,147.36,147.34,0.06]
[1751730877785,4.50949292,147.38,147.34,4.56949292]
[1751730877995,5.02212968,147.37,147.34,4.56949292]
[1751730878182,5.02212968,147.36,147.34,4.56949292]
[1751730878383,4.50949292,147.38,147.34,4.56949292]
[1751730878582,5.02155447,147.37,147.34,4.56949292]
[1751730878783,5.02155447,147.36,147.34,4.56949292]
[1751730878992,5.02133396,147.35,147.34,4.56949292]
[1751730879582,5.02133396,147.35,147.34,0.06]
[1751730882497,5.02133396,147.35,147.34,11.35651613]
[1751730882803,4.50949292,147.38,147.34,11.35651613]
[1751730882995,5.02129134,147.37,147.34,11.35651613]
[1751730883300,5.02129134,147.36,147.34,11.35651613]
[1751730883502,4.50949292,147.38,147.34,11.35651613]
[1751730883689,5.02104937,147.37,147.34,11.35651613]
[1751730883890,5.02104937,147.36,147.34,11.35651613]
[1751730884205,4.50949292,147.38,147.34,11.35651613]
[1751730884389,5.02104292,147.37,147.34,11.35651613]
[1751730884590,5.02104292,147.36,147.34,11.35651613]
[1751730884795,4.50949292,147.38,147.34,11.35651613]
[1751730885095,5.02089762,147.37,147.34,11.35651613]
[1751730885301,5.02089762,147.36,147.34,11.35651613]
[1751730885504,4.50949292,147.38,147.34,11.35651613]
[1751730885690,5.02077491,147.37,147.34,11.35651613]
[1751730885893,5.02077491,147.36,147.34,11.35651613]
[1751730886095,4.50949292,147.38,147.34,11.35651613]
[1751730886407,5.02077642,147.37,147.34,11.35651613]
[1751730886585,5.02077642,147.36,147.34,6.84702321]
[1751730886787,4.50949292,147.38,147.34,6.84702321]
[1751730887000,5.02088647,147.37,147.34,6.84702321]
[1751730887188,5.02088647,147.36,147.34,6.84702321]
[1751730887389,4.50949292,147.38,147.34,6.84702321]
[1751730887699,5.02062836,147.37,147.34,6.84702321]
[1751730887900,5.02062836,147.36,147.34,6.84702321]
[1751730888099,26.0,147.39,147.34,6.84702321]
[1751730888289,9.53012287,147.38,147.34,6.84702321]
[1751730888491,5.02062995,147.37,147.34,6.84702321]
[1751730888690,5.02062995,147.36,147.34,6.84702321]
[1751730888893,4.50949292,147.38,147.34,6.84702321]
[1751730889091,5.02041412,147.37,147.34,6.84702321]
[1751730889290,5.02041412,147.36,147.34,6.84702321]
[1751730889499,4.50949292,147.38,147.34,6.84702321]
[1751730889805,5.02023712,147.37,147.34,6.84702321]
[1751730890007,5.02023712,147.36,147.34,6.84702321]
[1751730890209,4.50949292,147.38,147.34,6.84702321]
[1751730890510,5.0200628,147.37,147.34,6.84702321]
[1751730890694,5.0200628,147.36,147.34,6.84702321]
[1751730890897,4.50949292,147.38,147.34,6.84702321]
[1751730891198,5.02009575,147.37,147.34,6.84702321]
[1751730891397,5.02009575,147.36,147.34,6.84702321]
[1751730891613,4.50949292,147.38,147.34,6.84702321]
[1751730891910,5.02049134,147.37,147.34,6.84702321]
[1751730892211,5.02049134,147.36,147.35,4.50949292]
[1751730892392,5.02102925,147.38,147.35,4.50949292]
[1751730892593,30.50949292,147.39,147.35,4.50949292]
[1751730892913,5.01973038,147.38,147.35,4.50949292]
[1751730893113,30.50949292,147.39,147.35,4.50949292]
[1751730893408,5.01973038,147.38,147.35,4.50949292]
[1751730893613,26.0,147.37,147.36,6.78610206]
[1751730896095,30.50949292,147.38,147.34,4.56949292]
[1751730900687,4.50949292,147.36,147.34,0.06]
[1751730901501,32.78499572,147.39,147.34,0.06]
[1751730901804,4.50949292,147.36,147.34,0.06]
[1751730905117,4.50949292,147.37,147.34,0.06]
[1751730905321,5.01507515,147.36,147.34,0.06]
[1751730905508,4.50949292,147.37,147.34,0.06]
[1751730905814,5.01497402,147.36,147.34,0.06]
[1751730906016,4.50949292,147.37,147.34,0.06]
[1751730906324,5.01543651,147.36,147.34,0.06]
[1751730906500,4.50949292,147.37,147.34,0.06]
[1751730906818,5.0153411,147.36,147.34,0.06]
[1751730907019,4.50949292,147.37,147.34,0.06]
[1751730907222,5.01534035,147.36,147.34,0.06]
[1751730907414,4.50949292,147.37,147.34,0.06]
[1751730907721,5.01539253,147.36,147.34,0.06]
[1751730907924,4.50949292,147.37,147.34,0.06]
[1751730908104,5.01539253,147.36,147.34,0.06]
[1751730908300,4.50949292,147.37,147.34,0.06]
[1751730908599,5.01544865,147.36,147.34,0.06]
[1751730908799,4.50949292,147.37,147.34,0.06]
[1751730909007,5.01544865,147.36,147.34,0.06]
[1751730909216,4.50949292,147.37,147.34,0.06]
[1751730909431,5.01550884,147.36,147.34,0.06]
[1751730909604,4.50949292,147.37,147.34,0.06]
[1751730909808,5.01550884,147.36,147.34,0.06]
[1751730910021,4.50949292,147.37,147.34,0.06]
[1751730910322,5.01843538,147.36,147.34,0.06]
[1751730910515,4.50949292,147.37,147.34,0.06]
[1751730910716,5.01894831,147.36,147.34,0.06]
[1751730910925,4.50949292,147.37,147.34,0.06]
[1751730911125,5.01960047,147.36,147.34,0.06]
[1751730911424,4.50949292,147.37,147.34,0.06]
[1751730911608,5.01976196,147.36,147.34,0.06]
[1751730911808,4.50949292,147.37,147.34,0.06]
[1751730912025,5.01976196,147.36,147.34,0.06]
[1751730912209,4.50949292,147.37,147.34,0.06]
[1751730912400,5.02047843,147.36,147.34,0.06]
[1751730912596,4.50949292,147.37,147.34,0.06]
[1751730912796,5.02064505,147.36,147.34,0.06]
[1751730913023,4.50949292,147.37,147.34,0.06]
[1751730913210,5.02078563,147.36,147.34,0.06]
[1751730913512,4.50949292,147.37,147.34,0.06]
[1751730913707,5.02097887,147.36,147.34,0.06]
[1751730914023,4.50949292,147.37,147.34,0.06]
[1751730914223,5.02111562,147.36,147.34,0.06]
[1751730914423,4.50949292,147.37,147.34,0.06]
[1751730914722,5.02133808,147.36,147.34,0.06]
[1751730914925,4.50949292,147.37,147.34,0.06]
[1751730915104,5.02133808,147.36,147.34,0.06]
[1751730915307,4.50949292,147.37,147.34,0.06]
[1751730915518,5.02217985,147.36,147.34,0.06]
[1751730915723,4.50949292,147.37,147.34,0.06]
[1751730915919,5.02217985,147.36,147.34,0.06]
[1751730916130,4.50949292,147.37,147.34,0.06]
[1751730916320,5.0223012,147.36,147.34,0.06]
[1751730916513,4.50949292,147.37,147.34,0.06]
[1751730916823,5.02313412,147.36,147.34,0.06]
[1751730917010,4.50949292,147.37,147.34,0.06]
[1751730917212,5.02355765,147.36,147.34,0.06]
[1751730917420,4.50949292,147.37,147.34,0.06]
[1751730917627,5.02396848,147.36,147.34,0.06]
[1751730917928,4.50949292,147.37,147.34,0.06]
[1751730918107,5.02428478,147.36,147.34,0.06]
[1751730918309,4.50949292,147.37,147.34,0.06]
[1751730918515,5.02485565,147.36,147.34,0.06]
[1751730918721,4.50949292,147.37,147.34,0.06]
[1751730918920,5.02485565,147.36,147.34,0.06]
[1751730919116,4.50949292,147.37,147.34,0.06]
[1751730919324,5.0249456,147.36,147.34,0.06]
[1751730919629,4.50949292,147.37,147.34,0.06]
[1751730919819,5.02522571,147.36,147.34,0.06]
[1751730920020,4.50949292,147.37,147.34,0.06]
[1751730920222,5.02530845,147.36,147.34,0.06]
[1751730920427,4.50949292,147.37,147.34,0.06]
[1751730920631,5.02563251,147.36,147.34,0.06]
[1751730920928,4.50949292,147.37,147.34,0.06]
[1751730921116,5.02563176,147.36,147.34,0.06]
[1751730921317,4.50949292,147.37,147.34,0.06]
[1751730921518,5.02628298,147.36,147.34,0.06]
[1751730921818,4.50949292,147.37,147.34,0.06]
[1751730922017,5.02628298,147.36,147.34,0.06]
[1751730922228,4.50949292,147.37,147.34,0.06]
[1751730922412,5.02635067,147.36,147.34,0.06]
[1751730922611,4.50949292,147.37,147.34,0.06]
[1751730922911,5.02627928,147.36,147.34,0.06]
[1751730923110,4.50949292,147.37,147.34,0.06]
[1751730923328,5.02634582,147.36,147.34,0.06]
[1751730923507,4.50949292,147.37,147.34,0.06]
[1751730923703,5.02625957,147.36,147.34,0.06]
[1751730923912,4.50949292,147.37,147.34,0.06]
[1751730924232,5.02626226,147.36,147.34,0.06]
[1751730924411,4.50949292,147.37,147.34,0.06]
[1751730924611,5.02634385,147.36,147.34,0.06]
[1751730924832,4.50949292,147.37,147.34,0.06]
[1751730925019,5.02634385,147.36,147.34,0.06]
[1751730925319,4.50949292,147.37,147.34,0.06]
[1751730925520,5.02642779,147.36,147.34,0.06]
[1751730925720,4.50949292,147.37,147.34,0.06]
[1751730925922,5.02642779,147.36,147.34,0.06]
[1751730926126,4.50949292,147.37,147.34,0.06]
[1751730926427,4.50949292,147.35,147.34,0.06]
[1751730926631,9.53598479,147.35,147.34,0.06]
[1751730927629,5.02649187,147.35,147.34,0.06]
[1751730927835,9.53598479,147.35,147.34,0.06]
[1751730931335,5.02649187,147.35,147.34,0.06]
[1751730931542,9.53598479,147.35,147.34,0.06]
[1751730943341,16.32254739,147.35,147.34,0.06]
[1751730949745,9.53598479,147.35,147.34,0.06]
[1751730950324,16.32254739,147.35,147.34,0.06]
[1751730952250,5.02649187,147.35,147.34,0.06]
[1751730952430,9.53598479,147.35,147.34,0.06]
[1751730958234,5.02649187,147.35,147.34,0.06]
[1751730958434,9.53598479,147.35,147.34,0.06]
[1751730960350,16.32254739,147.35,147.34,0.06]
[1751730971154,22.5789805,147.35,147.34,0.06]
[1751730985577,11.28292498,147.35,147.34,0.06]
[1751730986083,15.7924179,147.35,147.34,0.06]
[1751730994486,11.28292498,147.35,147.34,0.06]
[1751730994686,15.7924179,147.35,147.34,0.06]
[1751730995685,11.28292498,147.35,147.34,0.06]
[1751730995863,15.7924179,147.35,147.34,0.06]
[1751731004195,11.28292498,147.35,147.34,0.06]
[1751731004374,15.7924179,147.35,147.34,0.06]
[1751731007881,11.28292498,147.35,147.34,0.06]
[1751731008084,15.7924179,147.35,147.34,0.06]
[1751731008489,9.53598479,147.35,147.34,0.06]
[1751731017208,5.02649187,147.35,147.34,0.06]
[1751731017382,9.53598479,147.35,147.34,0.06]
[1751731029317,5.02649187,147.35,147.34,0.06]
[1751731029536,9.53598479,147.35,147.34,0.06]
[1751731037408,4.50949292,147.35,147.34,0.06]
[1751731037919,9.53635398,147.35,147.34,0.06]
[1751731042022,5.02686106,147.35,147.34,0.06]
[1751731042414,9.53635398,147.35,147.34,0.06]
[1751731052056,4.50949292,147.35,147.34,0.06]
[1751731052218,9.53957468,147.35,147.34,0.06]
[1751731054406,5.03008176,147.35,147.34,0.06]
[1751731054627,9.53957468,147.35,147.34,0.06]
[1751731060440,4.50949292,147.35,147.34,0.06]
[1751731060743,9.53965397,147.35,147.34,0.06]
[1751731062830,5.03016105,147.35,147.34,0.06]
[1751731063041,9.53965397,147.35,147.34,0.06]
[1751731070052,5.03016105,147.35,147.34,0.06]
[1751731070241,9.53965397,147.35,147.34,0.06]
[1751731071343,5.03016105,147.35,147.34,0.06]
[1751731071524,9.53965397,147.35,147.34,0.06]
[1751731071848,5.03016105,147.35,147.34,0.06]
[1751731072144,9.53965397,147.35,147.34,0.06]
[1751731098671,22.61391788,147.35,147.34,0.06]
[1751731099651,16.32621657,147.35,147.31,0.06]
[1751731099847,4.50949292,147.32,147.31,0.06]
[1751731100153,9.53965397,147.32,147.31,0.06]
[1751731101760,24.17577318,147.32,147.31,0.06]
[1751731101961,4.50949292,147.26,147.25,0.1]
[1751731102366,4.50949292,147.27,147.25,0.1]
[1751731102670,4.50949292,147.27,147.25,6.89117147]
[1751731102978,26.0,147.32,147.26,4.50949292]
[1751731103162,9.53085986,147.31,147.27,11.29974212]
[1751731103364,5.02136694,147.3,147.28,4.50949292]
[1751731103566,26.0,147.32,147.28,4.50949292]
[1751731103754,5.01995547,147.31,147.3,4.50949292]
[1751731104156,5.01995547,147.31,147.29,4.50949292]
[1751731104369,32.2861746,147.35,147.29,4.50949292]
[1751731104599,9.52934443,147.34,147.29,4.50949292]
[1751731104884,5.01985151,147.33,147.3,4.50949292]
[1751731105181,5.01985151,147.32,147.31,6.7884054]
[1751731106986,5.01985151,147.32,147.27,16.975623]
[1751731107165,9.52934443,147.31,147.27,21.48511592]
[1751731107370,5.01985151,147.3,147.27,21.48511592]
[1751731107558,4.50949292,147.31,147.27,21.48511592]
[1751731107760,4.50949292,147.3,147.28,6.78978815]
[1751731108188,4.50949292,147.31,147.28,6.78978815]
[1751731109069,4.50949292,147.31,147.27,6.7902492]
[1751731109272,4.50949292,147.31,147.27,11.29974212]
[1751731109863,4.50949292,147.32,147.28,4.50949292]
[1751731110558,4.50949292,147.31,147.27,28.27536512]
[1751731116689,26.0,147.32,147.27,28.27536512]
[1751731116869,4.50949292,147.31,147.27,28.27536512]
[1751731117496,26.0,147.32,147.27,28.27536512]
[1751731117666,4.50949292,147.31,147.27,28.27536512]
[1751731117867,26.0,147.32,147.28,4.50949292]
[1751731118074,30.50949292,147.32,147.29,6.78932717]
[1751731119888,0.03,147.31,147.29,6.78932717]
[1751731120999,0.03,147.31,147.27,23.8258722]
[1751731121297,0.03,147.31,147.28,4.50949292]
[1751731121499,0.03,147.31,147.27,28.33536512]
[1751731123395,4.53949292,147.31,147.27,28.33536512]
[1751731125398,0.03,147.31,147.3,4.50949292]
[1751731125702,0.03,147.31,147.3,11.29835917]
[1751731133489,0.03,147.31,147.3,6.78886625]
[1751731133698,0.03,147.31,147.3,11.29835917]
[1751731134497,0.03,147.31,147.3,6.78886625]
[1751731141824,0.03,147.31,147.3,6.84886625]
[1751731162216,0.03,147.31,147.3,30.00800803]
[1751731172936,0.03,147.31,147.3,25.49851511]
[1751731173437,974.50148489,147.3,147.29,4.65165449]
[1751731174720,974.50148489,147.3,147.29,11.44098166]
[1751731175520,974.50148489,147.3,147.29,30.09063052]
[1751731179661,974.50148489,147.3,147.29,25.5811376]
[1751731179852,974.50148489,147.3,147.29,30.09063052]
[1751731182452,938.21691177,147.3,147.29,25.5811376]
[1751731182636,938.21691177,147.3,147.29,30.09063052]
[1751731190568,938.21691177,147.3,147.29,45.55882009]
[1751731193046,938.21691177,147.3,147.29,64.35063052]
[1751731200938,938.21691177,147.3,147.29,30.09063052]
[1751731201370,938.21691177,147.3,147.29,25.5811376]
[1751731201547,938.21691177,147.3,147.29,30.09063052]
[1751731202872,938.21691177,147.3,147.29,64.33063052]
[1751731203272,938.21691177,147.3,147.29,62.83063052]
[1751731204668,938.21691177,147.3,147.29,58.3211376]
[1751731204967,938.21691177,147.3,147.29,62.83063052]
[1751731205874,938.21691177,147.3,147.29,39.52932717]
[1751731208669,938.21691177,147.3,147.29,5.28932717]
[1751731209467,938.21691177,147.3,147.29,9.79882009]
[1751731209701,938.21691177,147.3,147.29,28.59063052]
[1751731210572,938.24691177,147.3,147.29,28.59063052]
[1751731214183,938.24691177,147.3,147.29,24.0811376]
[1751731214394,938.24691177,147.3,147.29,28.59063052]
[1751731215681,945.86781177,147.3,147.28,6.84978815]
[1751731215888,939.75611177,147.3,147.28,6.84978815]
[1751731216189,939.75611177,147.3,147.28,11.35928107]
[1751731220668,939.75611177,147.3,147.29,4.50949292]
[1751731220877,939.75611177,147.3,147.29,38.74949292]
[1751731221488,939.75611177,147.3,147.29,45.53882009]
[1751731221671,938.24691177,147.3,147.29,64.33063052]
[1751731230203,938.24691177,147.3,147.29,59.8211376]
[1751731230502,938.24691177,147.3,147.29,64.33063052]
[1751731232394,938.24691177,147.3,147.29,59.8211376]
[1751731232581,938.24691177,147.3,147.29,64.33063052]
[1751731233099,938.24691177,147.3,147.29,63.83063052]
[1751731241513,938.24691177,147.3,147.29,59.3211376]
[1751731242710,938.24691177,147.3,147.29,63.83063052]
[1751731251823,866.33888114,147.3,147.29,63.83063052]
[1751731252025,788.99729392,147.3,147.29,63.83063052]
[1751731252206,750.94353915,147.3,147.29,63.83063052]
[1751731252403,714.03620467,147.3,147.29,63.83063052]
[1751731252627,639.47209826,147.3,147.29,63.83063052]
[1751731252840,602.26800326,147.3,147.29,63.83063052]
[1751731253325,439.74328162,147.3,147.29,212.73063052]
[1751731253532,287.4675775,147.3,147.29,212.73063052]
[1751731253738,202.79932352,147.3,147.29,212.73063052]
[1751731253908,99.41644259,147.3,147.29,212.73063052]
[1751731254114,33.96873938,147.3,147.29,212.73063052]
[1751731254335,1e-08,147.3,147.29,212.73063052]
[1751731255426,1.5738,147.37,147.3,44.79181043]
[1751731255620,1.5738,147.37,147.35,4.50949292]
[1751731255819,1.5738,147.37,147.36,41.00610206]
[1751731261527,0.03,147.4,147.36,59.79791249]
[1751731261728,4.50949292,147.39,147.36,41.00610206]
[1751731262035,4.50949292,147.38,147.36,41.00610206]
[1751731262533,4.50949292,147.38,147.36,6.78610206]
[1751731262942,0.03,147.4,147.36,6.78610206]
[1751731263119,4.50949292,147.38,147.36,6.78610206]
[1751731263315,4.50949292,147.39,147.36,6.78610206]
[1751731268122,0.03,147.4,147.36,6.78610206]
[1751731268345,4.53949292,147.4,147.36,6.78610206]
[1751731269047,0.03,147.4,147.36,11.29559498]
[1751731269250,4.53949292,147.4,147.36,29.94524384]
[1751731269630,0.03,147.4,147.36,29.94524384]
[1751731269832,0.03,147.4,147.37,4.50949292]
[1751731270238,0.03,147.4,147.37,38.72949292]
[1751731270643,0.03,147.4,147.38,6.78518116]
[1751731273141,0.03,147.4,147.38,11.29467408]
[1751731274240,0.03,147.4,147.39,11.29421372]
[1751731276634,0.03,147.4,147.39,30.08602415]
[1751731277035,0.03,147.4,147.39,64.30602415]
[1751731277762,1e-08,147.4,147.39,64.30602415]